fUST/lending_fUST_20250208
["ID","MTS","AMOUNT","RATE_DAILY","PERIOD"]
[352191370,1738986646113,-500.0,0.00011095,2]
[352191371,1738986646122,-502.27204048,0.00011095,2]
[352191372,1738986646131,-200.9217892,0.00011095,2]
[352191373,1738986646141,-500.0,0.00011095,2]
[352191374,1738986646150,-500.0,0.00011095,2]
[352191375,1738986646160,-500.0,0.00011095,2]
[352191376,1738986646169,-500.0,0.00011095,2]
[352191377,1738986646179,-500.0,0.00011095,2]
[352191378,1738986646188,-500.0,0.00011095,2]
[352191379,1738986646198,-500.87979671,0.00011095,2]
[352191380,1738986646207,-511.48685198,0.00011095,2]
[352191381,1738986646217,-500.0,0.00011095,2]
[352191382,1738986646226,-500.0,0.00011095,2]
[352191383,1738986646236,-500.0,0.00011095,2]
[352191384,1738986646246,-1187.64,0.00011095,2]
[352191385,1738986646255,-237.74358238,0.00011095,2]
[352191386,1738986646265,-500.0,0.00011095,2]
[352191387,1738986646274,-500.0,0.00011095,2]
[352191388,1738986646284,-500.0,0.00011095,2]
[352191389,1738986646293,-500.0,0.00011095,2]
[352191390,1738986646303,-844.74,0.00011095,2]
[352191391,1738986646312,-500.0,0.00011095,2]
[352191393,1738986646321,-500.0,0.00011095,2]
[352191395,1738986646332,-500.0,0.00011095,2]
[352191397,1738986646343,-500.0,0.00011095,2]
[352191398,1738986646352,-500.0,0.00011095,2]
[352191399,1738986646361,-500.0,0.00011095,2]
[352191400,1738986646371,-500.0,0.00011095,2]
[352191401,1738986646381,-515.71146168,0.00011095,2]
[352191402,1738986646391,-512.83333668,0.00011095,2]
[352191403,1738986646400,-500.0,0.00011095,2]
[352191404,1738986646410,-500.0,0.00011095,2]
[352191405,1738986646419,-500.0,0.00011095,2]
[352191406,1738986646431,-500.0,0.00011095,2]
[352191407,1738986646440,-500.0,0.00011095,2]
[352191408,1738986646449,-500.0,0.00011095,2]
[352191409,1738986646458,-643.98,0.00011095,2]
[352191410,1738986646468,-500.0,0.00011095,2]
[352191411,1738986646478,-500.0,0.00011095,2]
[352191412,1738986646487,-500.0,0.00011095,2]
[352191413,1738986646497,-500.0,0.00011095,2]
[352191414,1738986646506,-500.0,0.00011095,2]
[352191415,1738986646516,-502.64653152,0.00011095,2]
[352191416,1738986646525,-500.0,0.00011095,2]
[352191417,1738986646535,-500.0,0.00011095,2]
[352191418,1738986646544,-501.42696385,0.00011095,2]
[352191419,1738986646554,-500.0,0.00011095,2]
[352191420,1738986646564,-500.0,0.00011095,2]
[352191421,1738986646574,-500.0,0.00011095,2]
[352191422,1738986646583,-500.0,0.00011095,2]
[352191423,1738986646593,-503.9853436,0.00011095,2]
[352191424,1738986646603,-532.09559786,0.00011095,2]
[352191425,1738986646613,-500.0,0.00011095,2]
[352191426,1738986646622,-1161.94,0.00011095,2]
[352191427,1738986646632,-500.64885768,0.00011095,2]
[352191428,1738986646642,-500.0,0.00011095,2]
[352191429,1738986646652,-11896.36,0.00011095,2]
[352191430,1738986646661,-500.0,0.00011095,2]
[352191431,1738986646670,-500.0,0.00011095,2]
[352191432,1738986646680,-500.482637,0.00011095,2]
[352191433,1738986646690,-503.98600084,0.00011095,2]
[352191434,1738986646699,-500.0,0.00011095,2]
[352191435,1738986646709,-2490.74,0.00011095,2]
[352191436,1738986646718,-500.0,0.00011095,2]
[352191437,1738986646727,-500.0,0.00011095,2]
[352191438,1738986646736,-503.55351873,0.00011095,2]
[352191439,1738986646745,-500.0,0.00011095,2]
[352191440,1738986646755,-1808.35,0.00011095,2]
[352191441,1738986646764,-500.0,0.00011095,2]
[352191442,1738986646774,-502.01397189,0.00011095,2]
[352191443,1738986646783,-500.0,0.00011095,2]
[352191444,1738986646792,-500.0,0.00011095,2]
[352191445,1738986646802,-500.0,0.00011095,2]
[352191446,1738986646811,-500.0,0.00011095,2]
[352191447,1738986646821,-500.0,0.00011095,2]
[352191448,1738986646830,-500.0,0.00011095,2]
[352191449,1738986646840,-866.24,0.00011095,2]
[352191450,1738986646849,-500.0,0.00011095,2]
[352191451,1738986646858,-502.21787482,0.00011095,2]
[352191452,1738986646867,-500.96078762,0.00011095,2]
[352191453,1738986646877,-500.0,0.00011095,2]
[352191454,1738986646887,-1107.31,0.00011095,2]
[352191455,1738986646896,-500.0,0.00011095,2]
[352191456,1738986646905,-501.29739721,0.00011095,2]
[352191457,1738986646915,-500.0,0.00011095,2]
[352191458,1738986646925,-500.0,0.00011095,2]
[352191459,1738986646934,-500.0,0.00011095,2]
[352191460,1738986646944,-500.0,0.00011095,2]
[352191461,1738986646954,-500.0,0.00011095,2]
[352191462,1738986646963,-503.89414347,0.00011095,2]
[352191463,1738986646972,-505.87272741,0.00011095,2]
[352191464,1738986646982,-500.0,0.00011095,2]
[352191465,1738986646991,-500.0,0.00011095,2]
[352191466,1738986647000,-500.60683009,0.00011095,2]
[352191467,1738986647010,-500.0,0.00011095,2]
[352191468,1738986647019,-500.51643778,0.00011095,2]
[352191469,1738986647029,-500.0,0.00011095,2]
[352191470,1738986647038,-170.60188658,0.00011095,2]
[352191471,1738986647047,-501.47443994,0.00011095,2]
[352191472,1738986647056,-500.0,0.00011095,2]
[352191473,1738986647066,-500.0,0.00011095,2]
[352191474,1738986647075,-530.54,0.00011095,2]
[352191475,1738986647085,-501.08375953,0.00011095,2]
[352191476,1738986647095,-3349.65,0.00011095,2]
[352191477,1738986647104,-500.0,0.00011095,2]
[352191478,1738986647114,-1343.7,0.00011095,2]
[352191479,1738986647124,-500.0,0.00011095,2]
[352191480,1738986647134,-500.0,0.00011095,2]
[352191481,1738986647143,-500.0,0.00011095,2]
[352191482,1738986647152,-500.0,0.00011095,2]
[352191483,1738986647162,-500.0,0.00011095,2]
[352191484,1738986647171,-300.53013076,0.00011095,2]
[352191485,1738986647181,-500.0,0.00011095,2]
[352191486,1738986647190,-500.0,0.00011095,2]
[352191487,1738986647200,-500.0,0.00011095,2]
[352191488,1738986647210,-218.1979383,0.00011095,2]
[352191489,1738986647220,-500.0,0.00011095,2]
[352191490,1738986647229,-930.56,0.00011095,2]
[352191491,1738986647238,-500.0,0.00011095,2]
[352191492,1738986647247,-2379.24,0.00011095,2]
[352191493,1738986647257,-500.0,0.00011095,2]
[352191494,1738986647267,-500.0,0.00011095,2]
[352191495,1738986647277,-500.0,0.00011095,2]
[352191496,1738986647287,-500.0,0.00011095,2]
[352191497,1738986647297,-500.0,0.00011095,2]
[352191498,1738986647306,-500.0,0.00011095,2]
[352191499,1738986647315,-1198.12,0.00011095,2]
[352191500,1738986647325,-500.0,0.00011095,2]
[352191501,1738986647338,-500.0,0.00011095,2]
[352191502,1738986647348,-500.0,0.00011095,2]
[352191503,1738986647357,-501.25438904,0.00011095,2]
[352191504,1738986647366,-501.5042611,0.00011095,2]
[352191505,1738986647377,-500.0,0.00011095,2]
[352191506,1738986647387,-500.0,0.00011095,2]
[352191507,1738986647396,-500.0,0.00011095,2]
[352191508,1738986647407,-500.0,0.00011095,2]
[352191509,1738986647418,-500.0,0.00011095,2]
[352191510,1738986647427,-37253.15,0.00011095,2]
[352191511,1738986647437,-500.0,0.00011095,2]
[352191512,1738986647447,-1173.62,0.00011095,2]
[352191513,1738986647456,-500.0,0.00011095,2]
[352191514,1738986647465,-500.0,0.00011095,2]
[352191515,1738986647475,-514.74050267,0.00011095,2]
[352191516,1738986647485,-500.0,0.00011095,2]
[352191517,1738986647494,-1514.0,0.00011095,2]
[352191518,1738986647504,-500.0,0.00011095,2]
[352191519,1738986647513,-501.00860258,0.00011095,2]
[352191520,1738986647523,-500.0,0.00011095,2]
[352191521,1738986647533,-502.19243531,0.00011095,2]
[352191522,1738986647544,-500.0,0.00011095,2]
[352191523,1738986647553,-750.14,0.00011095,2]
[352191524,1738986647563,-500.0,0.00011095,2]
[352191525,1738986647573,-510.36582179,0.00011095,2]
[352191526,1738986647583,-500.0,0.00011095,2]
[352191527,1738986647593,-1419.55,0.00011095,2]
[352191528,1738986647603,-500.0,0.00011095,2]
[352191529,1738986647613,-500.0,0.00011095,2]
[352191530,1738986647623,-501.18953021,0.00011095,2]
[352191531,1738986647634,-500.0,0.00011095,2]
[352191532,1738986647644,-500.0,0.00011095,2]
[352191533,1738986647654,-500.0,0.00011095,2]
[352191534,1738986647665,-500.0,0.00011095,2]
[352191535,1738986647674,-852.4,0.00011095,2]
[352191536,1738986647685,-500.0,0.00011095,2]
[352191537,1738986647693,-500.0,0.00011095,2]
[352191538,1738986647703,-752.14,0.00011095,2]
[352191539,1738986647714,-500.0,0.00011095,2]
[352191540,1738986647724,-1177.77,0.00011095,2]
[352191541,1738986647734,-10693.74,0.00011095,2]
[352191542,1738986647744,-500.0,0.00011095,2]
[352191543,1738986647753,-500.0,0.00011095,2]
[352191544,1738986647763,-500.0,0.00011095,2]
[352191545,1738986647773,-500.0,0.00011095,2]
[352191546,1738986647782,-500.77310309,0.00011095,2]
[352191547,1738986647791,-500.0,0.00011095,2]
[352191548,1738986647804,-500.0,0.00011095,2]
[352191549,1738986647814,-500.0,0.00011095,2]
[352191550,1738986647824,-500.0,0.00011095,2]
[352191551,1738986647835,-1162.81,0.00011095,2]
[352191552,1738986647845,-500.0,0.00011095,2]
[352191553,1738986647856,-503.12982092,0.00011095,2]
[352191554,1738986647867,-500.0,0.00011095,2]
[352191555,1738986647877,-500.0,0.00011095,2]
[352191556,1738986647888,-500.0,0.00011095,2]
[352191557,1738986647898,-500.0,0.00011095,2]
[352191558,1738986647908,-500.0,0.00011095,2]
[352191559,1738986647918,-500.0,0.00011095,2]
[352191560,1738986647928,-500.0,0.00011095,2]
[352191561,1738986647938,-500.0,0.00011095,2]
[352191562,1738986647948,-1855.5,0.00011095,2]
[352191563,1738986647958,-500.0,0.00011095,2]
[352191564,1738986647968,-500.0,0.00011095,2]
[352191565,1738986647979,-500.0,0.00011095,2]
[352191566,1738986647989,-500.0,0.00011095,2]
[352191567,1738986647999,-500.0,0.00011095,2]
[352191568,1738986648009,-500.0,0.00011095,2]
[352191569,1738986648018,-500.0,0.00011095,2]
[352191570,1738986648028,-500.0,0.00011095,2]
[352191571,1738986648039,-500.0,0.00011095,2]
[352191572,1738986648050,-500.0,0.00011095,2]
[352191573,1738986648060,-500.98861283,0.00011095,2]
[352191574,1738986648070,-500.0,0.00011095,2]
[352191575,1738986648081,-391.1517909,0.00011095,2]
[352191576,1738986648093,-500.0,0.00011095,2]
[352191577,1738986648105,-2654.64,0.00011095,2]
[352191578,1738986648116,-500.0,0.00011095,2]
[352191579,1738986648127,-500.0,0.00011095,2]
[352191580,1738986648138,-500.0,0.00011095,2]
[352191581,1738986648148,-633.5,0.00011095,2]
[352191582,1738986648159,-506.20845166,0.00011095,2]
[352191583,1738986648169,-500.0,0.00011095,2]
[352191584,1738986648180,-364.180945,0.00011095,2]
[352191585,1738986648191,-2284.39,0.00011095,2]
[352191586,1738986648202,-574.58,0.00011095,2]
[352191587,1738986648211,-500.0,0.00011095,2]
[352191588,1738986648222,-1477.23,0.00011095,2]
[352191589,1738986648232,-2768.12,0.00011095,2]
[352191590,1738986648242,-527.37516668,0.00011095,2]
[352191591,1738986648252,-500.0,0.00011095,2]
[352191592,1738986648262,-4667.86,0.00011095,2]
[352191593,1738986648272,-500.0,0.00011095,2]
[352191594,1738986648283,-500.0,0.00011095,2]
[352191595,1738986648295,-500.0,0.00011095,2]
[352191596,1738986648305,-646.34,0.00011095,2]
[352191597,1738986648317,-880.47,0.00011095,2]
[352191598,1738986648327,-500.0,0.00011095,2]
[352191599,1738986648341,-596.69,0.00011095,2]
[352191600,1738986648352,-500.0,0.00011095,2]
[352191601,1738986648362,-500.0,0.00011095,2]
[352191602,1738986648373,-1084.97,0.00011095,2]
[352191603,1738986648383,-1008.78,0.00011095,2]
[352191604,1738986648393,-500.0,0.00011095,2]
[352191605,1738986648403,-501.40065633,0.00011095,2]
[352191606,1738986648414,-506.38679745,0.00011095,2]
[352191607,1738986648424,-500.0,0.00011095,2]
[352191608,1738986648434,-500.0,0.00011095,2]
[352191609,1738986648444,-500.0,0.00011095,2]
[352191610,1738986648455,-500.0,0.00011095,2]
[352191611,1738986648466,-602.02,0.00011095,2]
[352191612,1738986648477,-500.0,0.00011095,2]
[352191613,1738986648487,-500.0,0.00011095,2]
[352191614,1738986648497,-500.0,0.00011095,2]
[352191615,1738986648508,-500.0,0.00011095,2]
[352191616,1738986648517,-351.90816954,0.00011095,2]
[352191617,1738986648527,-500.0,0.00011095,2]
[352191618,1738986648538,-500.0,0.00011095,2]
[352191619,1738986648549,-508.86808716,0.00011095,2]
[352191620,1738986648559,-500.0,0.00011095,2]
[352191621,1738986648569,-3730.92,0.00011095,2]
[352191622,1738986648578,-500.0,0.00011095,2]
[352191623,1738986648588,-669.85,0.00011095,2]
[352191624,1738986648732,-500.0,0.00011095,2]
[352191625,1738986648759,-500.0,0.00011095,2]
[352191626,1738986648769,-500.0,0.00011095,2]
[352191627,1738986648779,-500.0,0.00011095,2]
[352191628,1738986648789,-500.0,0.00011095,2]
[352191629,1738986648800,-2965.28,0.00011095,2]
[352191630,1738986648810,-500.0,0.00011095,2]
[352191631,1738986648820,-500.0,0.00011095,2]
[352191632,1738986648831,-500.0,0.00011095,2]
[352191633,1738986648841,-500.0,0.00011095,2]
[352191634,1738986648851,-500.0,0.00011095,2]
[352191635,1738986648861,-500.0,0.00011095,2]
[352191636,1738986648870,-500.0,0.00011095,2]
[352191637,1738986648881,-502.71699891,0.00011095,2]
[352191638,1738986648891,-1257.34,0.00011095,2]
[352191639,1738986648901,-500.0,0.00011095,2]
[352191640,1738986648912,-500.0,0.00011095,2]
[352191641,1738986648923,-500.0,0.00011095,2]
[352191642,1738986648933,-500.0,0.00011095,2]
[352191643,1738986648943,-3003.49,0.00011095,2]
[352191644,1738986648954,-151.0,0.000111,2]
[352191645,1738986648964,-151.0,0.000111,2]
[352191646,1738986648974,-151.0,0.000111,2]
[352191647,1738986648983,-151.0,0.000111,2]
[352191648,1738986648993,-153.3943784,0.000111,2]
[352191649,1738986649003,-151.0,0.000112,2]
[352191650,1738986649014,-151.0,0.000112,2]
[352191651,1738986649024,-151.0,0.000112,2]
[352191652,1738986649034,-500.0,0.00011232,2]
[352191653,1738986649045,-500.0,0.00011232,2]
[352191654,1738986649054,-500.0,0.00011232,2]
[352191655,1738986649064,-500.0,0.00011232,2]
[352191656,1738986649074,-500.0,0.00011232,2]
[352191657,1738986649084,-500.0,0.00011232,2]
[352191658,1738986649094,-500.0,0.00011232,2]
[352191659,1738986649103,-500.0,0.00011232,2]
[352191660,1738986649112,-544.49,0.00011232,2]
[352191661,1738986649122,-500.0,0.00011232,2]
[352191662,1738986649131,-500.0,0.00011232,2]
[352191663,1738986649142,-500.0,0.00011232,2]
[352191664,1738986649152,-500.0,0.00011232,2]
[352191665,1738986649161,-500.0,0.00011232,2]
[352191666,1738986649171,-357.85706611,0.00011232,2]
[352191667,1738986649181,-502.42867812,0.00011232,2]
[352191668,1738986649191,-500.0,0.00011232,2]
[352191669,1738986649200,-500.0,0.00011232,2]
[352191670,1738986649209,-539.09187836,0.00011232,2]
[352191671,1738986649219,-500.0,0.00011232,2]
[352191672,1738986649228,-500.0,0.00011232,2]
[352191673,1738986649237,-500.0,0.00011232,2]
[352191674,1738986649247,-500.0,0.00011232,2]
[352191675,1738986649256,-500.0,0.00011232,2]
[352191676,1738986649266,-500.0,0.00011232,2]
[352191677,1738986649275,-500.0,0.00011232,2]
[352191678,1738986649284,-502.43926089,0.00011232,2]
[352191679,1738986649294,-500.0,0.00011232,2]
[352191680,1738986649306,-503.04869376,0.00011232,2]
[352191681,1738986649316,-500.0,0.00011232,2]
[352191682,1738986649326,-500.0,0.00011232,2]
[352191683,1738986649340,-500.0,0.00011232,2]
[352191684,1738986649351,-500.0,0.00011232,2]
[352191685,1738986649361,-533.43,0.00011232,2]
[352191686,1738986649372,-528.58042909,0.00011232,2]
[352191687,1738986649383,-500.0,0.00011232,2]
[352191688,1738986649393,-500.0,0.00011232,2]
[352191689,1738986649403,-579.44,0.00011232,2]
[352191690,1738986649414,-545.84,0.00011232,2]
[352191691,1738986649423,-625.36247002,0.00011232,2]
[352191692,1738986649433,-500.0,0.00011232,2]
[352191693,1738986649442,-500.0,0.00011232,2]
[352191694,1738986649452,-500.0,0.00011232,2]
[352191695,1738986649461,-456.55638713,0.00011232,2]
[352191696,1738986649471,-500.0,0.00011232,2]
[352191697,1738986649480,-502.46304177,0.00011232,2]
[352191698,1738986649489,-500.0,0.00011232,2]
[352191699,1738986649499,-500.0,0.00011232,2]
[352191700,1738986649508,-500.0,0.00011232,2]
[352191701,1738986649517,-502.34651418,0.00011232,2]
[352191702,1738986649526,-757.88,0.00011232,2]
[352191703,1738986649535,-500.0,0.00011232,2]
[352191704,1738986649544,-504.68709974,0.00011232,2]
[352191705,1738986649554,-500.0,0.00011232,2]
[352191706,1738986649563,-500.0,0.00011232,2]
[352191707,1738986649572,-500.0,0.00011232,2]
[352191708,1738986649582,-500.0,0.00011232,2]
[352191709,1738986649591,-292.11964998,0.00011232,2]
[352191710,1738986649600,-989.22,0.00011232,2]
[352191711,1738986649610,-500.0,0.00011232,2]
[352191712,1738986649622,-500.0,0.00011232,2]
[352191713,1738986649633,-500.0,0.00011232,2]
[352191714,1738986649643,-500.0,0.00011232,2]
[352191715,1738986649653,-500.0,0.00011232,2]
[352191716,1738986649663,-500.0,0.00011232,2]
[352191717,1738986649673,-527.71,0.00011232,2]
[352191718,1738986649682,-739.68,0.00011232,2]
[352191719,1738986649692,-500.0,0.00011232,2]
[352191720,1738986649701,-500.0,0.00011232,2]
[352191721,1738986649714,-503.8633671,0.00011232,2]
[352191722,1738986649723,-500.0,0.00011232,2]
[352191723,1738986649732,-500.0,0.00011232,2]
[352191724,1738986649742,-500.0,0.00011232,2]
[352191725,1738986649753,-500.0,0.00011232,2]
[352191726,1738986649762,-500.0,0.00011232,2]
[352191727,1738986649772,-500.0,0.00011232,2]
[352191728,1738986649782,-500.0,0.00011232,2]
[352191729,1738986649791,-500.0,0.00011232,2]
[352191730,1738986649802,-888.92,0.00011232,2]
[352191731,1738986649812,-500.0,0.00011232,2]
[352191732,1738986649821,-1180.78,0.00011232,2]
[352191733,1738986649830,-500.0,0.00011232,2]
[352191734,1738986649840,-500.0,0.00011232,2]
[352191735,1738986649850,-500.0,0.00011232,2]
[352191736,1738986649859,-226.05741988,0.00011232,2]
[352191737,1738986649868,-503.26640573,0.00011232,2]
[352191738,1738986649878,-503.62342582,0.00011232,2]
[352191739,1738986649888,-500.0,0.00011232,2]
[352191740,1738986649897,-1211.24,0.00011232,2]
[352191741,1738986649907,-604.73,0.00011232,2]
[352191742,1738986649917,-500.0,0.00011232,2]
[352191743,1738986649927,-500.0,0.00011232,2]
[352191744,1738986649936,-500.0,0.00011232,2]
[352191745,1738986649946,-500.0,0.00011232,2]
[352191746,1738986649956,-500.0,0.00011232,2]
[352191747,1738986649967,-287.05826935,0.00011232,2]
[352191748,1738986649976,-500.0,0.00011232,2]
[352191749,1738986649986,-587.76,0.00011232,2]
[352191750,1738986649997,-500.0,0.00011232,2]
[352191751,1738986650006,-500.0,0.00011232,2]
[352191752,1738986650015,-500.0,0.00011232,2]
[352191753,1738986650025,-513.56787768,0.00011232,2]
[352191754,1738986650034,-500.0,0.00011232,2]
[352191755,1738986650043,-500.0,0.00011232,2]
[352191756,1738986650054,-504.71221909,0.00011232,2]
[352191757,1738986650064,-500.0,0.00011232,2]
[352191758,1738986650074,-500.0,0.00011232,2]
[352191759,1738986650083,-500.0,0.00011232,2]
[352191760,1738986650093,-1187.64,0.00011232,2]
[352191761,1738986650102,-500.0,0.00011232,2]
[352191762,1738986650111,-500.0,0.00011232,2]
[352191763,1738986650120,-500.0,0.00011232,2]
[352191764,1738986650129,-500.0,0.00011232,2]
[352191765,1738986650138,-844.74,0.00011232,2]
[352191766,1738986650147,-500.0,0.00011232,2]
[352191767,1738986650157,-500.0,0.00011232,2]
[352191768,1738986650166,-515.17112088,0.00011232,2]
[352191769,1738986650175,-500.0,0.00011232,2]
[352191770,1738986650185,-500.0,0.00011232,2]
[352191771,1738986650194,-500.0,0.00011232,2]
[352191772,1738986650203,-500.0,0.00011232,2]
[352191773,1738986650212,-500.0,0.00011232,2]
[352191774,1738986650221,-500.0,0.00011232,2]
[352191775,1738986650230,-500.0,0.00011232,2]
[352191776,1738986650239,-500.0,0.00011232,2]
[352191777,1738986650248,-643.98,0.00011232,2]
[352191778,1738986650257,-500.0,0.00011232,2]
[352191779,1738986650266,-500.0,0.00011232,2]
[352191780,1738986650275,-500.0,0.00011232,2]
[352191781,1738986650284,-526.76913379,0.00011232,2]
[352191782,1738986650294,-500.0,0.00011232,2]
[352191783,1738986650303,-501.51816805,0.00011232,2]
[352191784,1738986650312,-500.0,0.00011232,2]
[352191785,1738986650322,-409.18946355,0.00011232,2]
[352191786,1738986650339,-500.0,0.00011232,2]
[352191787,1738986650348,-500.0,0.00011232,2]
[352191788,1738986650358,-500.0,0.00011232,2]
[352191789,1738986650367,-500.0,0.00011232,2]
[352191790,1738986650379,-1161.94,0.00011232,2]
[352191791,1738986650389,-11896.36,0.00011232,2]
[352191792,1738986650398,-500.0,0.00011232,2]
[352191793,1738986650408,-503.38356112,0.00011232,2]
[352191794,1738986650418,-2490.74,0.00011232,2]
[352191795,1738986650428,-501.45372425,0.00011232,2]
[352191796,1738986650437,-502.82824354,0.00011232,2]
[352191797,1738986650446,-500.0,0.00011232,2]
[352191798,1738986650456,-1808.35,0.00011232,2]
[352191799,1738986650465,-500.0,0.00011232,2]
[352191800,1738986650473,-500.0,0.00011232,2]
[352191801,1738986650482,-500.0,0.00011232,2]
[352191802,1738986650492,-256.2899064,0.00011232,2]
[352191803,1738986650501,-500.0,0.00011232,2]
[352191804,1738986650510,-500.0,0.00011232,2]
[352191805,1738986650519,-500.0,0.00011232,2]
[352191806,1738986650528,-866.24,0.00011232,2]
[352191807,1738986650537,-500.0,0.00011232,2]
[352191808,1738986650546,-500.0,0.00011232,2]
[352191809,1738986650555,-1107.31,0.00011232,2]
[352191810,1738986650564,-503.57221153,0.00011232,2]
[352191811,1738986650573,-500.0,0.00011232,2]
[352191812,1738986650582,-500.0,0.00011232,2]
[352191813,1738986650591,-500.0,0.00011232,2]
[352191814,1738986650600,-363.51527142,0.00011232,2]
[352191815,1738986650608,-503.89976115,0.00011232,2]
[352191816,1738986650617,-505.49781623,0.00011232,2]
[352191817,1738986650626,-500.0,0.00011232,2]
[352191818,1738986650635,-500.0,0.00011232,2]
[352191819,1738986650644,-500.0,0.00011232,2]
[352191820,1738986650653,-500.0,0.00011232,2]
[352191821,1738986650663,-530.54,0.00011232,2]
[352191822,1738986650672,-3349.65,0.00011232,2]
[352191823,1738986650681,-500.0,0.00011232,2]
[352191824,1738986650690,-1343.7,0.00011232,2]
[352191825,1738986650699,-500.0,0.00011232,2]
[352191826,1738986650708,-500.0,0.00011232,2]
[352191827,1738986650717,-500.0,0.00011232,2]
[352191828,1738986650727,-500.0,0.00011232,2]
[352191829,1738986650736,-502.35354507,0.00011232,2]
[352191830,1738986650745,-500.0,0.00011232,2]
[352191831,1738986650755,-503.08147711,0.00011232,2]
[352191832,1738986650764,-500.0,0.00011232,2]
[352191833,1738986650773,-930.56,0.00011232,2]
[352191834,1738986650782,-187.35996286,0.00011232,2]
[352191835,1738986650792,-2379.24,0.00011232,2]
[352191836,1738986650802,-501.87606981,0.00011232,2]
[352191837,1738986650811,-500.0,0.00011232,2]
[352191838,1738986650821,-500.0,0.00011232,2]
[352191839,1738986650831,-500.0,0.00011232,2]
[352191840,1738986650840,-500.0,0.00011232,2]
[352191841,1738986650849,-500.0,0.00011232,2]
[352191842,1738986650858,-1198.12,0.00011232,2]
[352191843,1738986650867,-500.0,0.00011232,2]
[352191844,1738986650876,-500.0,0.00011232,2]
[352191845,1738986650885,-500.0,0.00011232,2]
[352191846,1738986650894,-500.0,0.00011232,2]
[352191847,1738986650903,-238.14,0.00011232,2]
[352191848,1738986650913,-500.0,0.00011232,2]
[352191849,1738986650922,-500.0,0.00011232,2]
[352191850,1738986650931,-37253.15,0.00011232,2]
[352191851,1738986650940,-500.0,0.00011232,2]
[352191852,1738986650949,-1173.62,0.00011232,2]
[352191853,1738986650958,-500.0,0.00011232,2]
[352191854,1738986650967,-500.0,0.00011232,2]
[352191855,1738986650976,-500.0,0.00011232,2]
[352191856,1738986650985,-1514.0,0.00011232,2]
[352191857,1738986650994,-269.11,0.00011232,2]
[352191858,1738986651003,-500.0,0.00011232,2]
[352191859,1738986651012,-750.14,0.00011232,2]
[352191860,1738986651021,-500.0,0.00011232,2]
[352191861,1738986651030,-500.0,0.00011232,2]
[352191862,1738986651039,-1419.55,0.00011232,2]
[352191863,1738986651049,-500.0,0.00011232,2]
[352191864,1738986651058,-500.0,0.00011232,2]
[352191865,1738986651066,-500.0,0.00011232,2]
[352191866,1738986651076,-500.0,0.00011232,2]
[352191867,1738986651085,-500.0,0.00011232,2]
[352191868,1738986651094,-620.15232358,0.00011232,2]
[352191869,1738986651104,-852.4,0.00011232,2]
[352191870,1738986651113,-500.0,0.00011232,2]
[352191871,1738986651122,-500.0,0.00011232,2]
[352191872,1738986651132,-752.14,0.00011232,2]